[Event "NOR-ch Youth 2019"]
[Site "Skien"]
[Date "2019.11.09"]
[Round "5.15"]
[White "Hausken, Aleksander Skrede"]
[Black "Tunsjo, Axel"]
[Result "0-1"]
[ECO "B23"]
[WhiteElo "1403"]
[BlackElo "2038"]
[Annotator "NA RC"]
[PlyCount "84"]
[EventDate "2019.11.08"]
[EventType "swiss"]
[EventCountry "NOR"]
[SourceTitle "playchess.com"]
[Source "ChessBase"]
[SourceQuality "1"]
[TimeControl "5400+30"]

1. e4 {[%emt 0:02:32]} c5 {[%emt 0:00:30]} 2. Nc3 {[%emt 0:00:43]} Nc6 {[%emt 0:00:10]} 3. Bb5 {[%emt 0:00:21]} g6 {[%emt 0:00:55]} 4. f4 {[%emt 0:01:44]} Nd4 {[%emt 0:01:51]} 5. Bc4 {[%emt 0:02:09]} Bg7 {[%emt 0:00:06]} 6. Nf3 {[%emt 0:01:23]} d6 {[%emt 0:00:21]} 7. O-O {[%emt 0:00:59]} e6 {[%emt 0:02:59] B23: Closed Sicilian: Lines without g3} 8. Ne2 {[%emt 0:01:22]} (8. e5 Nxf3+ 9. Qxf3 d5 10. Bb5+ Bd7 11. Bxd7+ Qxd7 12. d4 cxd4 13. Ne2 Ne7 14. Nxd4 Nc6 15. Nb3 {0-1 (65) Sutovsky,E (2657)-Tiviakov,S (2631) Bled 2002}) 8... Ne7 {[%emt 0:01:01]} 9. Nexd4 {[%emt 0:00:40]} cxd4 {[%emt 0:00:19]} 10. d3 $146 {[%emt 0:02:27]} ({Predecessor:} 10. Bb5+ Nc6 11. e5 O-O 12. Bxc6 bxc6 13. c3 Ba6 14. Re1 d3 15. Re4 {0-1 (26) Loss,V (1397)-Caldeira,A (2178) Concordia 2019}) 10... O-O {[%emt 0:00:15]} 11. b3 {[%emt 0:00:04]} d5 {[%emt 0:00:48]} 12. exd5 {[%emt 0:01:47]} Nxd5 {[%emt 0:00:06]} 13. Bxd5 {[%emt 0:01:32]} Qxd5 {[%emt 0:00:09]} 14. Bb2 {[%emt 0:01:10]} b6 {[%emt 0:01:02]} 15. Qe2 {[%emt 0:01:29]} Bb7 {[%emt 0:00:09]} 16. Rae1 {[%emt 0:01:42]} Rfc8 {[%emt 0:03:05]} 17. Rf2 {[%emt 0:02:17]} Rc7 {[%emt 0:01:29]} 18. a4 {[%emt 0:04:47]} Rac8 {[%emt 0:01:14]} 19. Rc1 {[%emt 0:01:09]} Qd6 {[%emt 0:04:16]} 20. Ne5 {[%emt 0:01:27]} Bd5 {[%emt 0:02:08]} 21. Nc4 {[%emt 0:04:12]} Qd8 {[%emt 0:06:58]} 22. Rff1 {[%emt 0:04:24]} h5 {[%emt 0:02:16]} 23. Qf2 {[%emt 0:00:49]} Bxc4 {[%emt 0:01:15]} 24. dxc4 {[%emt 0:00:43]} Rd7 {[%emt 0:00:09]} 25. Rcd1 {[%emt 0:01:53]} Qf6 {[%emt 0:00:17]} 26. Rfe1 {[%emt 0:03:06]} Rcd8 {[%emt 0:01:23]} 27. Re5 {[%emt 0:02:17]} Bh6 {[%emt 0:07:56]} 28. Re4 {[%emt 0:04:55]} Bg7 {[%emt 0:00:09]} 29. Re5 {[%emt 0:00:15]} Qe7 {[%emt 0:00:06]} 30. Re4 {[%emt 0:01:00]} Qc5 {[%emt 0:00:17]} ({Black should play} 30... d3 $17 31. Bxg7 dxc2) 31. Rd3 {[%emt 0:00:58]} Qf5 {[%emt 0:03:18]} 32. Qf3 {[%emt 0:05:47]} Qg4 {[%emt 0:11:42]} (32... a6 $15) 33. Qxg4 {[%emt 0:00:50]} hxg4 {[%emt 0:00:01]} 34. Kf2 {[%emt 0:00:38]} Rd6 {[%emt 0:00:36]} 35. Kg3 {[%emt 0:00:47]} (35. Ba3 $14 {stays ahead.}) 35... f5 {[%emt 0:00:51]} 36. Re2 {[%emt 0:00:45]} Kf7 {[%emt 0:00:14]} 37. Re1 {[%emt 0:01:22]} (37. Kf2 $15) 37... Bf6 {[%emt 0:01:10]} 38. Re2 {[%emt 0:02:27]} (38. Red1 $11 {remains equal.}) 38... g5 {[%emt 0:05:40]} 39. Ba3 {[%emt 0:01:11]} (39. Bc1 $17) 39... R6d7 {[%emt 0:04:37]} 40. Bc1 {[%emt 0:01:05]} gxf4+ {[%emt 0:01:00]} 41. Bxf4 {[%emt 0:00:40]} Rh8 {[%emt 0:02:29]} 42. Re1 {[%emt 0:00:03]} (42. Kf2 $17) 42... Bh4# {Skewer} 0-1

[Event "NOR-ch Youth 2019"]
[Site "Skien"]
[Date "2019.11.09"]
[Round "5.16"]
[White "Strand, Vetle Bjorge"]
[Black "Olsen, William Alexander"]
[Result "0-1"]
[ECO "E13"]
[WhiteElo "1695"]
[BlackElo "1842"]
[Annotator "NA RC"]
[PlyCount "58"]
[EventDate "2019.11.08"]
[EventType "swiss"]
[EventCountry "NOR"]
[SourceTitle "playchess.com"]
[Source "ChessBase"]
[SourceQuality "1"]
[TimeControl "5400+30"]

1. d4 {[%emt 0:00:00]} Nf6 {[%emt 0:00:00]} 2. c4 {[%emt 0:00:00]} e6 {[%emt 0:00:00]} 3. Nf3 {[%emt 0:00:00]} b6 {[%emt 0:00:00]} 4. Nc3 {[%emt 0:00:00]} Bb4 {[%emt 0:00:08]} 5. Bg5 {[%emt 0:00:51]} Bb7 {[%emt 0:00:30]} 6. e3 {[%emt 0:00:13]} h6 {[%emt 0:00:04]} 7. Bh4 {[%emt 0:00:05]} g5 {[%emt 0:00:11]} 8. Bg3 {[%emt 0:00:26]} Ne4 {[%emt 0:00:27]} 9. Qc2 {[%emt 0:00:45]} d6 {[%emt 0:00:37]} 10. a3 {[%emt 0:01:07]} Bxc3+ {[%emt 0:00:08]} 11. bxc3 {[%emt 0:00:18]} Nd7 {[%emt 0:00:28]} 12. Nd2 {[%emt 0:03:49]} f5 {[%emt 0:03:23]} 13. f3 {[%emt 0:04:53]} Nxg3 {[%emt 0:01:40]} 14. hxg3 {[%emt 0:00:01]} Qf6 {[%emt 0:01:38]} 15. Bd3 {[%emt 0:07:38]} c5 {[%emt 0:02:57]} 16. Nb3 {[%emt 0:06:17]} cxd4 {[%emt 0:09:07]} 17. cxd4 {[%emt 0:02:20]} Rc8 {[%emt 0:01:38]} 18. Qe2 {[%emt 0:09:14]} e5 {[%emt 0:03:37]} 19. d5 {[%emt 0:27:51]} e4 {[%emt 0:03:25]} 20. Bc2 {[%emt 0:04:43]} Ba6 {[%emt 0:02:21]} 21. Rd1 {[%emt 0:06:12]} Bxc4 {[%emt 0:00:43]} 22. Qd2 {[%emt 0:01:22]} Bxb3 {[%emt 0:02:27]} 23. Bxb3 {[%emt 0:00:02]} Qc3 {[%emt 0:00:44]} 24. Qxc3 {[%emt 0:02:30]} Rxc3 {[%emt 0:00:12]} 25. Rb1 {[%emt 0:00:54]} Nc5 {[%emt 0:01:01]} 26. Bd1 {[%emt 0:01:32]} Rxe3+ {[%emt 0:00:25]} 27. Kf2 {[%emt 0:00:48]} Rxa3 {[%emt 0:00:06]} 28. Be2 {[%emt 0:01:30]} Kf7 {[%emt 0:03:27]} 29. Ra1 {[%emt 0:00:14]} e3+ {[%emt 0:00:15]} 0-1

[Event "NOR-ch Youth 2019"]
[Site "Skien"]
[Date "2019.11.09"]
[Round "5.17"]
[White "Helliesen, Lykke-Merlot"]
[Black "Digernes, Mikael"]
[Result "0-1"]
[ECO "E70"]
[WhiteElo "1619"]
[BlackElo "1715"]
[Annotator "NA RC"]
[PlyCount "66"]
[EventDate "2019.11.08"]
[EventType "swiss"]
[EventCountry "NOR"]
[SourceTitle "playchess.com"]
[Source "ChessBase"]
[SourceQuality "1"]
[TimeControl "5400+30"]

1. d4 {[%emt 0:00:00]} Nf6 {[%emt 0:00:00]} 2. c4 {[%emt 0:00:00]} g6 {[%emt 0:00:00]} 3. Nc3 {[%emt 0:00:00]} Bg7 {[%emt 0:00:05]} 4. e4 {[%emt 0:00:11]} d6 {[%emt 0:00:30]} 5. Bd3 {[%emt 0:00:21]} O-O {[%emt 0:01:03]} 6. Nge2 {[%emt 0:00:23]} e5 {[%emt 0:00:58]} 7. d5 {[%emt 0:01:13]} a5 {[%emt 0:02:15]} 8. O-O {[%emt 0:04:07]} Na6 {[%emt 0:01:58]} 9. Ng3 {[%emt 0:02:34]} Nc5 {[%emt 0:03:51]} 10. Bc2 {[%emt 0:02:51]} c6 {[%emt 0:07:30]} 11. Na4 {[%emt 0:09:38]} Na6 {[%emt 0:08:42]} 12. a3 {[%emt 0:03:32]} Rb8 {[%emt 0:04:31]} 13. Nc3 {[%emt 0:08:05]} Qc7 {[%emt 0:04:19]} 14. Be3 {[%emt 0:05:40]} b5 {[%emt 0:05:38]} 15. cxb5 {[%emt 0:16:38]} cxb5 {[%emt 0:05:31]} 16. Bd3 {[%emt 0:02:44]} Bd7 {[%emt 0:07:46]} 17. a4 {[%emt 0:10:47]} b4 {[%emt 0:09:46]} 18. Bxa6 {[%emt 0:03:32]} bxc3 {[%emt 0:00:37]} 19. bxc3 {[%emt 0:00:47]} Qxc3 {[%emt 0:01:35]} 20. Rc1 {[%emt 0:04:26]} Qb3 {[%emt 0:07:36]} 21. Qxb3 {[%emt 0:01:24]} Rxb3 {[%emt 0:00:15]} 22. Rc4 {[%emt 0:01:52]} Rfb8 {[%emt 0:05:06]} 23. Rfc1 {[%emt 0:02:27]} Ra3 {[%emt 0:02:14]} 24. Bb5 {[%emt 0:04:39]} Bxb5 {[%emt 0:05:28]} 25. axb5 {[%emt 0:00:13]} Ng4 {[%emt 0:02:15]} 26. Rc8+ {[%emt 0:04:40]} Rxc8 {[%emt 0:00:17]} 27. Rxc8+ {[%emt 0:00:10]} Bf8 {[%emt 0:00:32]} 28. Ba7 {[%emt 0:00:47]} Ra1+ {[%emt 0:01:52]} 29. Nf1 {[%emt 0:00:02]} Rb1 {[%emt 0:00:46]} 30. b6 {[%emt 0:00:58]} a4 {[%emt 0:07:37]} 31. Rc3 {[%emt 0:00:44]} Nf6 {[%emt 0:00:54]} 32. Ra3 {[%emt 0:07:22]} Nxe4 {[%emt 0:00:57]} 33. Rxa4 {[%emt 0:01:57]} Nc3 {[%emt 0:02:24]} 0-1

[Event "NOR-ch Youth 2019"]
[Site "Skien"]
[Date "2019.11.09"]
[Round "5.18"]
[White "Steensen, Oskar"]
[Black "Nilsen, Henrik Lauvsnes"]
[Result "1-0"]
[ECO "A42"]
[WhiteElo "1457"]
[BlackElo "1169"]
[Annotator "NA RC"]
[PlyCount "97"]
[EventDate "2019.11.08"]
[EventType "swiss"]
[EventCountry "NOR"]
[SourceTitle "playchess.com"]
[Source "ChessBase"]
[SourceQuality "1"]
[TimeControl "5400+30"]

1. c4 {[%emt 0:00:00]} g6 {[%emt 0:00:09]} 2. d4 {[%emt 0:00:00]} c6 {[%emt 0:02:25]} 3. e4 {[%emt 0:00:11]} Bg7 {[%emt 0:01:03]} 4. Nc3 {[%emt 0:00:28]} d6 {[%emt 0:01:48]} 5. Be3 {[%emt 0:00:31]} f5 {[%emt 0:04:49]} 6. h4 {[%emt 0:00:29]} Nf6 {[%emt 0:04:39]} 7. Bd3 {[%emt 0:00:41]} fxe4 {[%emt 0:04:25]} 8. Nxe4 {[%emt 0:00:09]} Nxe4 {[%emt 0:00:47]} 9. Bxe4 {[%emt 0:00:09]} Nd7 {[%emt 0:05:52]} 10. Bg5 {[%emt 0:02:47]} Qb6 {[%emt 0:09:53]} 11. Qe2 {[%emt 0:00:51]} Qxd4 {[%emt 0:05:03]} 12. Bxg6+ {[%emt 0:00:11]} Kd8 {[%emt 0:02:22]} 13. Bxe7+ {[%emt 0:00:44]} Kc7 {[%emt 0:01:00]} 14. Rd1 {[%emt 0:00:19]} Qxd1+ {[%emt 0:08:14]} 15. Qxd1 {[%emt 0:00:16]} Be5 {[%emt 0:01:58]} 16. Bh5 {[%emt 0:00:28]} Rg8 {[%emt 0:01:45]} 17. Nf3 {[%emt 0:01:14]} Rg7 {[%emt 0:01:17]} 18. Bg5 {[%emt 0:00:22]} h6 {[%emt 0:01:39]} 19. Bxh6 {[%emt 0:01:22]} Re7 {[%emt 0:00:59]} 20. Nxe5 {[%emt 0:00:22]} Nxe5 {[%emt 0:00:57]} 21. O-O {[%emt 0:00:44]} Be6 {[%emt 0:01:35]} 22. b3 {[%emt 0:00:40]} Rg8 {[%emt 0:01:52]} 23. Bf4 {[%emt 0:00:46]} Bh3 {[%emt 0:03:20]} 24. Bf3 {[%emt 0:00:55]} Rf7 {[%emt 0:04:27]} 25. Bxe5 {[%emt 0:00:19]} dxe5 {[%emt 0:01:55]} 26. Kh2 {[%emt 0:00:33]} Bf5 {[%emt 0:03:22]} 27. Qe2 {[%emt 0:00:44]} Re7 {[%emt 0:01:23]} 28. Be4 {[%emt 0:00:17]} Bg4 {[%emt 0:01:00]} 29. f3 {[%emt 0:01:03]} Bd7 {[%emt 0:01:50]} 30. g4 {[%emt 0:00:13]} Reg7 {[%emt 0:01:09]} 31. Kg3 {[%emt 0:01:00]} Kd8 {[%emt 0:02:21]} 32. h5 {[%emt 0:00:19]} Ke7 {[%emt 0:00:47]} 33. h6 {[%emt 0:00:10]} Rf7 {[%emt 0:00:09]} 34. h7 {[%emt 0:00:19]} Rh8 {[%emt 0:00:20]} 35. f4 {[%emt 0:00:19]} Kf8 {[%emt 0:01:32]} 36. fxe5 {[%emt 0:00:13]} Rxf1 {[%emt 0:00:36]} 37. Qxf1+ {[%emt 0:00:06]} Ke8 {[%emt 0:00:29]} 38. Bg6+ {[%emt 0:00:22]} Kd8 {[%emt 0:00:33]} 39. Qf6+ {[%emt 0:00:09]} Kc7 {[%emt 0:00:12]} 40. Qxh8 {[%emt 0:00:09]} Bxg4 {[%emt 0:00:15]} 41. Qg7+ {[%emt 0:00:16]} Kb6 {[%emt 0:00:17]} 42. b4 {[%emt 0:00:17]} Bf5 {[%emt 0:00:36]} 43. a4 {[%emt 0:00:14]} Bxg6 {[%emt 0:00:12]} 44. c5+ {[%emt 0:00:15]} Ka6 {[%emt 0:00:24]} 45. Qxg6 {[%emt 0:00:30]} b6 {[%emt 0:00:32]} 46. cxb6 {[%emt 0:00:27]} axb6 {[%emt 0:00:50]} 47. Qxc6 {[%emt 0:00:08]} Ka7 {[%emt 0:00:01]} 48. h8=Q {[%emt 0:00:13]} b5 {[%emt 0:00:33]} 49. Qha8# {[%emt 0:00:10]} 1-0

[Event "NOR-ch Youth 2019"]
[Site "Skien"]
[Date "2019.11.09"]
[Round "5.19"]
[White "Ostensen, Nicolai Maxime"]
[Black "Brattgjerd, Isak Vinh"]
[Result "1/2-1/2"]
[ECO "B25"]
[WhiteElo "1691"]
[BlackElo "1699"]
[Annotator "NA RC"]
[PlyCount "77"]
[EventDate "2019.11.08"]
[EventType "swiss"]
[EventCountry "NOR"]
[SourceTitle "playchess.com"]
[Source "ChessBase"]
[SourceQuality "1"]
[TimeControl "5400+30"]

1. e4 {[%emt 0:00:00]} c5 {[%emt 0:00:14]} 2. Nf3 {[%emt 0:00:30]} d6 {[%emt 0:00:14]} 3. Nc3 {[%emt 0:00:16]} Nf6 {[%emt 0:00:33]} 4. d3 {[%emt 0:00:33]} g6 {[%emt 0:00:28]} 5. g3 {[%emt 0:00:34]} Bg7 {[%emt 0:00:18]} 6. Bg2 {[%emt 0:00:28]} O-O {[%emt 0:00:34]} 7. O-O {[%emt 0:00:17]} Nc6 {[%emt 0:00:35]} 8. h3 {[%emt 0:01:30]} Bd7 {[%emt 0:01:15]} 9. Re1 {[%emt 0:04:04]} Rb8 {[%emt 0:02:13]} 10. a4 {[%emt 0:00:39]} a6 {[%emt 0:00:29]} 11. Be3 {[%emt 0:08:50]} e5 {[%emt 0:08:28]} 12. Nd2 {[%emt 0:08:54]} Qc7 {[%emt 0:09:11]} 13. f4 {[%emt 0:02:33]} b6 {[%emt 0:01:53]} 14. Ne2 {[%emt 0:15:52]} Qc8 {[%emt 0:16:20]} 15. Kh2 {[%emt 0:01:41]} Be6 {[%emt 0:00:09]} 16. c3 {[%emt 0:10:38]} Bg4 {[%emt 0:11:50]} 17. Nc4 {[%emt 0:04:57]} Bxe2 {[%emt 0:01:18]} 18. Qxe2 {[%emt 0:01:26]} Qc7 {[%emt 0:02:55]} 19. Red1 {[%emt 0:07:41]} Nd7 {[%emt 0:02:57]} 20. Nd2 {[%emt 0:05:16]} Rbe8 {[%emt 0:10:57]} 21. Qf3 {[%emt 0:03:50]} Nf6 {[%emt 0:04:35]} 22. Rab1 {[%emt 0:03:52]} Nh5 {[%emt 0:04:19]} 23. f5 {[%emt 0:01:44]} Qd7 {[%emt 0:05:51]} 24. b4 {[%emt 0:03:29]} Rb8 {[%emt 0:01:44]} 25. h4 {[%emt 0:01:23]} Bh8 {[%emt 0:01:58]} 26. Bh3 {[%emt 0:00:10]} Qc7 {[%emt 0:00:27]} 27. Bh6 {[%emt 0:01:13]} Rfe8 {[%emt 0:00:22]} 28. Rf1 {[%emt 0:00:31]} cxb4 {[%emt 0:00:49]} 29. cxb4 {[%emt 0:01:18]} Nd4 {[%emt 0:00:10]} 30. Qf2 {[%emt 0:00:12]} Qe7 {[%emt 0:00:59]} 31. Nf3 {[%emt 0:01:43]} Nxf3+ {[%emt 0:00:53]} 32. Qxf3 {[%emt 0:00:06]} Rbc8 {[%emt 0:00:44]} 33. Rf2 {[%emt 0:01:25]} Rc7 {[%emt 0:00:13]} 34. Rbf1 {[%emt 0:00:14]} Rb8 {[%emt 0:01:19]} 35. fxg6 {[%emt 0:02:02]} hxg6 {[%emt 0:00:21]} 36. Qg4 {[%emt 0:01:02]} Nf6 {[%emt 0:01:31]} 37. Qg5 {[%emt 0:00:50]} Nh5 {[%emt 0:00:25]} 38. Qg4 {[%emt 0:00:27]} Nf6 {[%emt 0:01:36]} 39. Qg5 {[%emt 0:02:44]} 1/2-1/2

[Event "NOR-ch Youth 2019"]
[Site "Skien"]
[Date "2019.11.09"]
[Round "5.20"]
[White "Bjorkan, Olav"]
[Black "Khoo-Thwe, Louis"]
[Result "0-1"]
[ECO "C45"]
[WhiteElo "1407"]
[BlackElo "1660"]
[Annotator "NA RC"]
[PlyCount "98"]
[EventDate "2019.11.08"]
[EventType "swiss"]
[EventCountry "NOR"]
[SourceTitle "playchess.com"]
[Source "ChessBase"]
[SourceQuality "1"]
[TimeControl "5400+30"]

1. e4 {[%emt 0:00:00]} e5 {[%emt 0:00:00]} 2. d4 {[%emt 0:00:00]} exd4 {[%emt 0:00:00]} 3. Nf3 {[%emt 0:00:00]} Nc6 {[%emt 0:00:00]} 4. Nxd4 {[%emt 0:00:01]} Bc5 {[%emt 0:00:00]} 5. Nxc6 {[%emt 0:01:11]} Qf6 {[%emt 0:00:00]} 6. Be3 {[%emt 0:01:23]} Bxe3 {[%emt 0:00:09]} 7. fxe3 {[%emt 0:00:04]} Qxb2 {[%emt 0:01:01]} 8. Qd4 {[%emt 0:03:13]} Qc1+ {[%emt 0:00:06]} 9. Kf2 {[%emt 0:02:16]} Qxc2+ {[%emt 0:00:05]} 10. Be2 {[%emt 0:00:13]} Qxc6 {[%emt 0:00:04]} 11. Qxg7 {[%emt 0:00:08]} Qf6+ {[%emt 0:00:03]} 12. Qxf6 {[%emt 0:00:06]} Nxf6 {[%emt 0:00:06]} 13. Nd2 {[%emt 0:00:05]} d6 {[%emt 0:00:57]} 14. Rhc1 {[%emt 0:00:34]} Kd8 {[%emt 0:00:19]} 15. h3 {[%emt 0:00:23]} Re8 {[%emt 0:00:13]} 16. Bf3 {[%emt 0:00:09]} b6 {[%emt 0:00:05]} 17. e5 {[%emt 0:00:07]} Rb8 {[%emt 0:01:13]} 18. exf6 {[%emt 0:00:07]} Re6 {[%emt 0:00:03]} 19. Ne4 {[%emt 0:00:30]} h6 {[%emt 0:02:14]} 20. Rd1 {[%emt 0:01:45]} Bb7 {[%emt 0:00:39]} 21. Nc3 {[%emt 0:00:32]} Rxf6 {[%emt 0:00:24]} 22. Rac1 {[%emt 0:00:21]} a6 {[%emt 0:01:24]} 23. Nd5 {[%emt 0:00:32]} Bxd5 {[%emt 0:00:19]} 24. Rxd5 {[%emt 0:00:08]} c5 {[%emt 0:01:54]} 25. Rcd1 {[%emt 0:00:35]} Kc7 {[%emt 0:00:07]} 26. Ke2 {[%emt 0:00:06]} b5 {[%emt 0:01:02]} 27. R5d2 {[%emt 0:00:48]} Re8 {[%emt 0:01:28]} 28. Bd5 {[%emt 0:00:22]} Rf5 {[%emt 0:01:31]} 29. e4 {[%emt 0:00:42]} c4 {[%emt 0:02:12]} 30. Rc2 {[%emt 0:00:20]} Kb6 {[%emt 0:00:16]} 31. Rb1 {[%emt 0:00:28]} Rxd5 {[%emt 0:00:06]} 32. Kf3 {[%emt 0:00:25]} Rd3+ {[%emt 0:00:25]} 33. Ke2 {[%emt 0:00:28]} Rxe4+ {[%emt 0:00:09]} 34. Kf2 {[%emt 0:00:10]} d5 {[%emt 0:00:45]} 35. a4 {[%emt 0:00:27]} Rb3 {[%emt 0:00:39]} 36. Rd1 {[%emt 0:01:21]} d4 {[%emt 0:00:24]} 37. axb5 {[%emt 0:00:15]} axb5 {[%emt 0:00:09]} 38. Rcd2 {[%emt 0:00:11]} d3 {[%emt 0:00:15]} 39. Kf3 {[%emt 0:00:13]} Re6 {[%emt 0:00:29]} 40. Kf4 {[%emt 0:00:22]} Re2 {[%emt 0:00:37]} 41. Rxe2 {[%emt 0:00:14]} dxe2 {[%emt 0:00:06]} 42. Re1 {[%emt 0:00:03]} Rb2 {[%emt 0:00:07]} 43. Ke3 {[%emt 0:00:07]} c3 {[%emt 0:00:24]} 44. Kd3 {[%emt 0:00:13]} c2 {[%emt 0:00:27]} 45. Kd2 {[%emt 0:00:04]} Rb1 {[%emt 0:00:09]} 46. Kxc2 {[%emt 0:00:31]} Rxe1 {[%emt 0:00:07]} 47. Kd2 {[%emt 0:00:01]} Rg1 {[%emt 0:00:10]} 48. Kxe2 {[%emt 0:00:02]} Rxg2+ {[%emt 0:00:08]} 49. Kf3 {[%emt 0:01:25]} Rc2 {[%emt 0:00:10]} 0-1

[Event "NOR-ch Youth 2019"]
[Site "Skien"]
[Date "2019.11.09"]
[Round "5.21"]
[White "Tollefsen, Jacob"]
[Black "Kierulf, Villum Brevick"]
[Result "0-1"]
[ECO "A45"]
[WhiteElo "1160"]
[BlackElo "1373"]
[Annotator "NA RC"]
[PlyCount "94"]
[EventDate "2019.11.08"]
[EventType "swiss"]
[EventCountry "NOR"]
[SourceTitle "playchess.com"]
[Source "ChessBase"]
[SourceQuality "1"]
[TimeControl "5400+30"]

1. d4 {[%emt 0:00:00]} Nf6 {[%emt 0:00:00]} 2. Nc3 {[%emt 0:00:21]} c5 {[%emt 0:00:02]} 3. e3 {[%emt 0:01:19]} cxd4 {[%emt 0:00:17]} 4. exd4 {[%emt 0:00:37]} e6 {[%emt 0:00:54]} 5. Nf3 {[%emt 0:02:20]} Bb4 {[%emt 0:00:59]} 6. Bd2 {[%emt 0:02:24]} O-O {[%emt 0:00:41]} 7. a3 {[%emt 0:03:27]} Bxc3 {[%emt 0:02:29]} 8. Bxc3 {[%emt 0:00:53]} Nc6 {[%emt 0:00:31]} 9. Bd3 {[%emt 0:06:03]} d5 {[%emt 0:04:55]} 10. O-O {[%emt 0:03:50]} Bd7 {[%emt 0:07:42]} 11. Bd2 {[%emt 0:04:33]} Qb6 {[%emt 0:02:03]} 12. Bc3 {[%emt 0:04:05]} Rac8 {[%emt 0:18:20]} 13. Qd2 {[%emt 0:04:19]} Qc7 {[%emt 0:10:58]} 14. h3 {[%emt 0:03:22]} Rfd8 {[%emt 0:02:01]} 15. Bb5 {[%emt 0:04:33]} a6 {[%emt 0:03:40]} 16. Bd3 {[%emt 0:01:32]} Be8 {[%emt 0:02:56]} 17. b4 {[%emt 0:02:53]} b5 {[%emt 0:00:51]} 18. a4 {[%emt 0:04:04]} Ne7 {[%emt 0:03:00]} 19. axb5 {[%emt 0:00:27]} Qxc3 {[%emt 0:00:27]} 20. Qxc3 {[%emt 0:00:25]} Rxc3 {[%emt 0:00:01]} 21. bxa6 {[%emt 0:00:22]} Ra8 {[%emt 0:03:33]} 22. b5 {[%emt 0:00:27]} Nc8 {[%emt 0:00:16]} 23. Rfb1 {[%emt 0:00:36]} Nb6 {[%emt 0:00:08]} 24. Nd2 {[%emt 0:01:24]} Nfd7 {[%emt 0:02:37]} 25. Nb3 {[%emt 0:00:38]} f6 {[%emt 0:01:07]} 26. Na5 {[%emt 0:00:27]} Nf8 {[%emt 0:04:16]} 27. Nb7 {[%emt 0:00:16]} Bg6 {[%emt 0:00:38]} 28. Nc5 {[%emt 0:01:18]} Bxd3 {[%emt 0:00:12]} 29. cxd3 {[%emt 0:00:18]} e5 {[%emt 0:00:30]} 30. Na4 {[%emt 0:01:05]} Nxa4 {[%emt 0:00:20]} 31. Rxa4 {[%emt 0:00:10]} Rcc8 {[%emt 0:00:48]} 32. a7 {[%emt 0:00:27]} Rc7 {[%emt 0:00:17]} 33. b6 {[%emt 0:00:32]} Rb7 {[%emt 0:00:11]} 34. dxe5 {[%emt 0:00:17]} fxe5 {[%emt 0:00:16]} 35. Ra5 {[%emt 0:00:32]} Nd7 {[%emt 0:00:30]} 36. Rab5 {[%emt 0:00:41]} Kf7 {[%emt 0:00:15]} 37. Rxd5 {[%emt 0:00:37]} Ke6 {[%emt 0:00:08]} 38. Rdb5 {[%emt 0:00:25]} Kd6 {[%emt 0:00:22]} 39. R5b3 {[%emt 0:00:13]} Nc5 {[%emt 0:01:12]} 40. Rc3 {[%emt 0:00:51]} Ne6 {[%emt 0:03:31]} 41. g3 {[%emt 0:01:04]} Nd4 {[%emt 0:00:15]} 42. Kf1 {[%emt 0:00:25]} Nc6 {[%emt 0:00:26]} 43. Ke2 {[%emt 0:00:37]} Nxa7 {[%emt 0:00:41]} 44. Ke3 {[%emt 0:01:41]} Nc6 {[%emt 0:00:29]} 45. Ke4 {[%emt 0:00:04]} Ra4+ {[%emt 0:00:54]} 46. Ke3 {[%emt 0:00:30]} Ne7 {[%emt 0:02:50]} 47. f4 {[%emt 0:00:47]} Nd5+ {[%emt 0:00:10]} 0-1

[Event "NOR-ch Youth 2019"]
[Site "Skien"]
[Date "2019.11.09"]
[Round "5.22"]
[White "Ji, Jiabao Eivind"]
[Black "Ji, Jiahao Eric"]
[Result "0-1"]
[ECO "C50"]
[WhiteElo "1373"]
[BlackElo "1667"]
[Annotator "NA RC"]
[PlyCount "94"]
[EventDate "2019.11.08"]
[EventType "swiss"]
[EventCountry "NOR"]
[SourceTitle "playchess.com"]
[Source "ChessBase"]
[SourceQuality "1"]
[TimeControl "5400+30"]

1. e4 {[%emt 0:00:00]} e5 {[%emt 0:00:00]} 2. Nf3 {[%emt 0:00:00]} Nc6 {[%emt 0:00:05]} 3. Bc4 {[%emt 0:00:31]} Nf6 {[%emt 0:00:19]} 4. d3 {[%emt 0:00:15]} Bc5 {[%emt 0:00:20]} 5. Bg5 {[%emt 0:00:24]} O-O {[%emt 0:00:13]} 6. Nc3 {[%emt 0:00:34]} h6 {[%emt 0:01:10]} 7. Bh4 {[%emt 0:00:12]} Be7 {[%emt 0:02:21]} 8. Qd2 {[%emt 0:00:33]} d6 {[%emt 0:00:34]} 9. h3 {[%emt 0:00:17]} Be6 {[%emt 0:01:21]} 10. Bb3 {[%emt 0:00:47]} Nh5 {[%emt 0:01:44]} 11. Bxe7 {[%emt 0:00:35]} Qxe7 {[%emt 0:00:14]} 12. O-O {[%emt 0:00:17]} g5 {[%emt 0:01:49]} 13. Ne2 {[%emt 0:00:38]} Nf4 {[%emt 0:00:37]} 14. Ng3 {[%emt 0:01:56]} Qf6 {[%emt 0:02:53]} 15. Kh2 {[%emt 0:00:44]} Kh7 {[%emt 0:03:15]} 16. Rh1 {[%emt 0:01:06]} a5 {[%emt 0:07:45]} 17. Ng1 {[%emt 0:00:53]} a4 {[%emt 0:02:26]} 18. Bxe6 {[%emt 0:00:38]} fxe6 {[%emt 0:00:10]} 19. Rf1 {[%emt 0:00:35]} Nd4 {[%emt 0:04:28]} 20. c3 {[%emt 0:00:45]} Nc6 {[%emt 0:00:39]} 21. N1e2 {[%emt 0:00:57]} Ne7 {[%emt 0:01:33]} 22. d4 {[%emt 0:00:28]} Neg6 {[%emt 0:01:22]} 23. Nxf4 {[%emt 0:02:06]} Nxf4 {[%emt 0:00:40]} 24. dxe5 {[%emt 0:01:01]} Qxe5 {[%emt 0:01:09]} 25. Qd4 {[%emt 0:00:19]} Qxd4 {[%emt 0:02:55]} 26. cxd4 {[%emt 0:00:15]} Nd3 {[%emt 0:00:03]} 27. f3 {[%emt 0:00:33]} Nxb2 {[%emt 0:00:23]} 28. Rb1 {[%emt 0:00:10]} a3 {[%emt 0:00:19]} 29. Rhc1 {[%emt 0:00:17]} c6 {[%emt 0:00:35]} 30. e5 {[%emt 0:00:34]} d5 {[%emt 0:00:17]} 31. Ne2 {[%emt 0:00:57]} Ra4 {[%emt 0:01:13]} 32. Rc3 {[%emt 0:00:50]} Rf7 {[%emt 0:01:47]} 33. Rb3 {[%emt 0:00:45]} Kg7 {[%emt 0:04:21]} 34. Kg3 {[%emt 0:00:30]} Kf8 {[%emt 0:01:33]} 35. Kf2 {[%emt 0:00:38]} Ke8 {[%emt 0:01:48]} 36. Ke3 {[%emt 0:00:15]} Kd8 {[%emt 0:00:59]} 37. Nc3 {[%emt 0:00:14]} Ra8 {[%emt 0:01:12]} 38. Nd1 {[%emt 0:01:28]} Nc4+ {[%emt 0:00:28]} 39. Kd3 {[%emt 0:00:18]} b5 {[%emt 0:00:14]} 40. Ne3 {[%emt 0:00:09]} Kc7 {[%emt 0:01:38]} 41. Nc2 {[%emt 0:00:58]} Rf4 {[%emt 0:01:12]} 42. Rb4 {[%emt 0:02:53]} h5 {[%emt 0:00:56]} 43. Ne3 {[%emt 0:00:29]} Ra7 {[%emt 0:02:58]} 44. Nxc4 {[%emt 0:01:03]} dxc4+ {[%emt 0:00:23]} 45. Kc3 {[%emt 0:00:20]} Ra8 {[%emt 0:00:10]} 46. Rxc4 {[%emt 0:01:45]} bxc4 {[%emt 0:00:11]} 47. Kxc4 {[%emt 0:00:10]} Ra4+ {[%emt 0:00:01]} 0-1